fUST/lending_fUST_20241126
["ID","MTS","AMOUNT","RATE_DAILY","PERIOD"]
[343313093,1732571440027,-500.0,0.00023777,2]
[343313096,1732571440037,-500.0,0.00023777,2]
[343313099,1732571440047,-500.0,0.00023777,2]
[343313102,1732571440057,-500.0,0.00023777,2]
[343313105,1732571440067,-545.33,0.00023777,2]
[343313108,1732571440077,-500.0,0.00023777,2]
[343313110,1732571440090,-500.0,0.00023777,2]
[343313113,1732571440101,-500.0,0.00023777,2]
[343313116,1732571440110,-245.27,0.00023777,2]
[343313118,1732571440120,-500.0,0.00023777,2]
[343313120,1732571440130,-500.0,0.00023777,2]
[343313122,1732571440139,-500.0,0.00023777,2]
[343313124,1732571440149,-3380.4,0.00023777,2]
[343313126,1732571440158,-157.13,0.00023777,2]
[343313128,1732571440168,-500.0,0.00023777,2]
[343313130,1732571440178,-500.0,0.00023777,2]
[343313132,1732571440188,-583.11086506,0.00023777,2]
[343313135,1732571440198,-500.0,0.00023777,2]
[343313138,1732571440208,-500.0,0.00023777,2]
[343313141,1732571440219,-500.0,0.00023777,2]
[343313144,1732571440231,-500.0,0.00023777,2]
[343313147,1732571440240,-500.0,0.00023777,2]
[343313150,1732571440249,-500.0,0.00023777,2]
[343313153,1732571440259,-500.0,0.00023777,2]
[343313155,1732571440269,-500.0,0.00023777,2]
[343313158,1732571440278,-500.0,0.00023777,2]
[343313160,1732571440288,-500.0,0.00023777,2]
[343313163,1732571440300,-500.0,0.00023777,2]
[343313167,1732571440310,-500.0,0.00023777,2]
[343313169,1732571440320,-500.0,0.00023777,2]
[343313171,1732571440330,-500.0,0.00023777,2]
[343313172,1732571440342,-500.0,0.00023777,2]
[343313174,1732571440352,-500.0,0.00023777,2]
[343313176,1732571440361,-500.0,0.00023778,2]
[343313178,1732571440371,-500.0,0.00023778,2]
[343313180,1732571440380,-500.0,0.00023778,2]
[343313183,1732571440391,-500.0,0.00023778,2]
[343313184,1732571440400,-500.0,0.00023778,2]
[343313186,1732571440410,-500.0,0.00023778,2]
[343313188,1732571440419,-500.0,0.00023778,2]
[343313190,1732571440428,-500.0,0.00023778,2]
[343313192,1732571440437,-500.0,0.00023778,2]
[343313194,1732571440446,-500.0,0.00023778,2]
[343313195,1732571440455,-648.17,0.00023778,2]
[343313196,1732571440464,-500.0,0.00023778,2]
[343313197,1732571440473,-500.0,0.00023778,2]
[343313198,1732571440483,-500.0,0.00023778,2]
[343313199,1732571440493,-500.0,0.00023778,2]
[343313200,1732571440502,-500.0,0.00023778,2]
[343313201,1732571440511,-500.0,0.00023778,2]
[343313202,1732571440521,-500.0,0.00023778,2]
[343313203,1732571440531,-500.0,0.00023778,2]
[343313204,1732571440540,-500.0,0.00023778,2]
[343313205,1732571440550,-500.0,0.00023778,2]
[343313206,1732571440560,-500.0,0.00023778,2]
[343313207,1732571440570,-500.0,0.00023778,2]
[343313208,1732571440579,-166.583489,0.00023874,2]
[343313209,1732571440593,-641.57,0.00024041,3]
[343313210,1732571440604,-623.2,0.0002405,2]
[343313211,1732571440613,-500.0,0.0002405,2]
[343313212,1732571440623,-500.0,0.0002405,2]
[343313213,1732571440633,-200.0,0.0002405,2]
[343313214,1732571440642,-500.0,0.00024051,2]
[343313215,1732571440653,-500.0,0.00024051,2]
[343313216,1732571440662,-500.0,0.00024051,2]
[343313217,1732571440672,-299.71027247,0.00024051,2]
[343313218,1732571440682,-513.52597429,0.00024051,2]
[343313219,1732571440692,-500.0,0.00024051,2]
[343313220,1732571440701,-371.20487204,0.00024051,2]
[343313221,1732571440711,-500.0,0.00024051,2]
[343313222,1732571440720,-500.0,0.00024051,2]
[343313223,1732571440730,-579.8730152,0.00024051,2]
[343313224,1732571440739,-540.89208464,0.00024051,2]
[343313225,1732571440750,-366.86269572,0.00024051,2]
[343313226,1732571440760,-164.22,0.00024051,2]
[343313227,1732571440769,-500.0,0.00024051,2]
[343313228,1732571440778,-545.33,0.00024051,2]
[343313229,1732571440788,-500.0,0.00024051,2]
[343313230,1732571440798,-500.0,0.00024051,2]
[343313231,1732571440807,-500.0,0.00024051,2]
[343313232,1732571440817,-500.0,0.00024051,2]
[343313233,1732571440826,-500.0,0.00024051,2]
[343313235,1732571440836,-3380.4,0.00024051,2]
[343313236,1732571440850,-483.07,0.00024051,2]
[343313237,1732571440860,-500.0,0.00024051,2]
[343313238,1732571440869,-500.0,0.00024051,2]
[343313239,1732571440880,-320.13,0.00024051,2]
[343313240,1732571440890,-500.0,0.00024051,2]
[343313241,1732571440900,-500.0,0.00024051,2]
[343313242,1732571440910,-500.0,0.00024051,2]
[343313243,1732571440920,-500.0,0.00024051,2]
[343313244,1732571440931,-500.0,0.00024051,2]
[343313245,1732571440940,-500.0,0.00024051,2]
[343313247,1732571440950,-500.0,0.00024051,2]
[343313249,1732571440960,-500.0,0.00024051,2]
[343313251,1732571440970,-500.0,0.00024051,2]
[343313253,1732571440980,-500.0,0.00024051,2]
[343313254,1732571440990,-500.0,0.00024051,2]
[343313255,1732571441000,-500.0,0.00024051,2]
[343313256,1732571441010,-500.0,0.00024051,2]
[343313257,1732571441019,-500.0,0.00024052,2]
[343313258,1732571441029,-500.0,0.00024052,2]
[343313259,1732571441039,-500.0,0.00024052,2]
[343313260,1732571441048,-500.0,0.00024052,2]
[343313261,1732571441058,-500.0,0.00024052,2]
[343313263,1732571441068,-500.0,0.00024052,2]
[343313264,1732571441078,-500.0,0.00024052,2]
[343313265,1732571441088,-500.0,0.00024052,2]
[343313267,1732571441103,-500.0,0.00024052,2]
[343313269,1732571441113,-500.0,0.00024052,2]
[343313271,1732571441124,-518.61,0.00024052,2]
[343313273,1732571441134,-500.0,0.00024052,2]
[343313275,1732571441143,-500.0,0.00024052,2]
[343313277,1732571441153,-500.0,0.00024052,2]
[343313279,1732571441162,-244.38,0.00024052,2]
[343313281,1732571441172,-500.0,0.00024052,2]
[343313283,1732571441182,-500.0,0.00024052,2]
[343313285,1732571441192,-500.0,0.00024052,2]
[343313287,1732571441203,-500.0,0.00024052,2]
[343313289,1732571441212,-500.0,0.00024052,2]
[343313291,1732571441224,-500.0,0.00024052,2]
[343313293,1732571441234,-197.042,0.000242,6]
[343313295,1732571441243,-296.9495573,0.00024226,2]
[343313298,1732571441254,-500.0,0.00024226,2]
[343313300,1732571441264,-222.08994633,0.00024226,2]
[343313302,1732571441275,-267.31486389,0.00024226,2]
[343313303,1732571441284,-305.45812541,0.00024226,2]
[343313306,1732571441296,-241.58822368,0.00024226,2]
[343313308,1732571441306,-168685.9264861,0.00024227,2]
[343313310,1732571441321,-10941.99665377,0.00024227,2]
[343313312,1732571441333,-42372.07686013,0.00024227,2]
[343313314,1732571441346,-840.78632477,0.00024262,2]
[343313316,1732571441355,-500.0,0.00024273,2]
[343313318,1732571441365,-500.0,0.00024273,2]
[343313319,1732571441374,-500.0,0.00024273,2]
[343313320,1732571441384,-623.2,0.00024324,2]
[343313321,1732571441394,-500.0,0.00024324,2]
[343313322,1732571441404,-500.0,0.00024324,2]
[343313323,1732571441414,-500.0,0.00024325,2]
[343313325,1732571441423,-492.27,0.00024325,2]
[343313327,1732571441433,-545.33,0.00024325,2]
[343313328,1732571441443,-500.0,0.00024325,2]
[343313329,1732571441453,-500.0,0.00024325,2]
[343313331,1732571441463,-500.0,0.00024325,2]
[343313333,1732571441473,-246.65,0.00024325,2]
[343313335,1732571441482,-500.0,0.00024325,2]
[343313336,1732571441492,-3380.4,0.00024325,2]
[343313337,1732571441503,-500.0,0.00024325,2]
[343313338,1732571441512,-500.0,0.00024325,2]
[343313339,1732571441522,-500.0,0.00024325,2]
[343313340,1732571441532,-500.0,0.00024325,2]
[343313341,1732571441541,-500.0,0.00024325,2]
[343313342,1732571441551,-500.0,0.00024325,2]
[343313343,1732571441560,-500.0,0.00024325,2]
[343313344,1732571441571,-500.0,0.00024325,2]
[343313345,1732571441580,-500.0,0.00024325,2]
[343313346,1732571441593,-500.0,0.00024325,2]
[343313347,1732571441603,-500.0,0.00024325,2]
[343313348,1732571441613,-500.0,0.00024325,2]
[343313349,1732571441623,-404.28346504,0.00024326,2]
[343313350,1732571441633,-475.54,0.00024326,2]
[343313351,1732571441643,-500.0,0.00024326,2]
[343313352,1732571441653,-500.0,0.00024326,2]
[343313353,1732571441662,-639.76753969,0.00024326,2]
[343313354,1732571441671,-500.0,0.00024326,2]
[343313355,1732571441681,-500.0,0.00024326,2]
[343313356,1732571441691,-500.0,0.00024326,2]
[343313357,1732571441700,-500.0,0.00024326,2]
[343313358,1732571441710,-500.0,0.00024326,2]
[343313359,1732571441720,-645.79,0.00024326,2]
[343313360,1732571441729,-500.0,0.00024326,2]
[343313361,1732571441739,-500.0,0.00024326,2]
[343313362,1732571441749,-500.0,0.00024326,2]
[343313363,1732571441759,-500.0,0.00024326,2]
[343313364,1732571441769,-500.0,0.00024326,2]
[343313365,1732571441783,-500.0,0.00024326,2]
[343313366,1732571441792,-500.0,0.00024326,2]
[343313367,1732571441802,-623.2,0.00024598,2]
[343313368,1732571441812,-500.0,0.00024598,2]
[343313369,1732571441821,-500.0,0.00024598,2]
[343313370,1732571441832,-500.0,0.00024599,2]
[343313371,1732571441846,-545.33,0.00024599,2]
[343313372,1732571441857,-261.58,0.00024599,2]
[343313373,1732571441866,-500.0,0.00024599,2]
[343313374,1732571441876,-3380.4,0.00024599,2]
[343313375,1732571441886,-500.0,0.00024599,2]
[343313376,1732571441896,-500.0,0.00024599,2]
[343313377,1732571441906,-500.0,0.00024599,2]
[343313378,1732571441918,-500.0,0.00024599,2]
[343313379,1732571441928,-500.0,0.00024599,2]
[343313380,1732571441938,-617.4,0.00024599,2]
[343313381,1732571441948,-500.0,0.00024599,2]
[343313383,1732571441958,-410.69,0.00024599,2]
[343313384,1732571441968,-500.0,0.00024599,2]
[343313385,1732571441978,-4.62061422,0.000246,2]
[343313386,1732571442003,-89.6884734,0.000246,2]
[343313387,1732571442014,-354.70500001,0.000246,2]
[343313388,1732571442026,-50.98591237,0.000246,2]
[343313389,1732571442036,-500.0,0.000246,2]
[343313390,1732571442046,-500.0,0.000246,2]
[343313391,1732571442056,-500.0,0.000246,2]
[343313392,1732571442066,-526.62,0.000246,2]
[343313393,1732571442075,-318.07320965,0.000246,2]
[343313394,1732571442085,-477.35575945,0.000246,2]
[343313395,1732571442103,-500.0,0.000246,2]
[343313396,1732571442114,-500.0,0.000246,2]
[343313397,1732571442125,-192.17245171,0.000246,2]
[343313398,1732571442155,-307.82754829,0.000246,2]
[343313399,1732571442164,-500.0,0.000246,2]
[343313400,1732571442174,-567.3,0.000246,2]
[343313401,1732571442184,-640.26,0.000246,2]
[343313402,1732571442194,-500.0,0.000246,2]
[343313403,1732571442204,-500.0,0.00024673,2]
[343313404,1732571442215,-170.78253416,0.00024699,2]
[343313406,1732571442230,-65.54748982,0.00024699,2]
[343313408,1732571442242,-329.1063016,0.00024699,2]
[343313409,1732571442254,-3104.27970523,0.00024699,2]
[343313411,1732571442267,-10636.37242176,0.000247,5]
[343313437,1732571443858,-213.85,0.00024217,3]
[343313438,1732571443868,-12974.73,0.000247,5]
[343313439,1732571443880,-89612.96915377,0.000247,5]
[343313440,1732571443891,-7634.68678393,0.000247,5]
[343313441,1732571443903,-1206.01246684,0.000247,5]
[343313467,1732571446513,-470.0,0.000247,5]
[343313468,1732571446524,-398891.77465101,0.000247,5]
[343313473,1732571824230,294.79291097,0.00022,2]
[343313475,1732571972386,165.312149,0.00021793,2]
[343313481,1732572088781,5725.2741166,0.0002169,2]
[343313483,1732572161327,294.375694,0.00021476,2]
[343313484,1732572214823,159.640276,0.00022,2]
[343313486,1732572223109,159.640276,0.00022,2]
[343313494,1732572380759,178.936949,0.00013973,2]
[343313495,1732572430116,-160.0,0.00022,2]
[343313496,1732572430139,-62.5363458,0.00022,2]
[343313497,1732572442191,1018.560259,0.00021488,2]
[343313498,1732572459067,17085.2728505,0.00021433,2]
[343313499,1732572459846,10000.0,0.00022,2]
[343313524,1732572509782,2102.63,0.00022,2]
[343313525,1732572547144,-280.13593431,0.00022,2]
[343313526,1732572547165,-585.90608968,0.00022173,2]
[343313527,1732572548131,-432.65416932,0.00022173,2]
[343313528,1732572548152,-176.91,0.00022419,2]
[343313529,1732572548176,-300.0,0.00022428,2]
[343313530,1732572548198,-684.71,0.00022428,2]
[343313531,1732572548219,-3929.0,0.00022428,2]
[343313532,1732572548241,-274.92022408,0.00022429,2]
[343313533,1732572548262,-500.0,0.00022429,2]
[343313534,1732572548282,-500.0,0.00022429,2]
[343313535,1732572548301,-500.0,0.00022429,2]
[343313536,1732572548320,-533.92163532,0.00022429,2]
[343313537,1732572548339,-500.0,0.00022429,2]
[343313538,1732572548359,-530.44377022,0.00022429,2]
[343313539,1732572548379,-500.0,0.00022429,2]
[343313540,1732572548398,-500.0,0.00022429,2]
[343313541,1732572548420,-503.5850989,0.00022429,2]
[343313542,1732572548439,-500.0,0.00022429,2]
[343313543,1732572548459,-500.0,0.00022429,2]
[343313544,1732572548479,-500.0,0.00022429,2]
[343313545,1732572548498,-500.0,0.00022429,2]
[343313546,1732572548518,-200.0,0.00022429,2]
[343313547,1732572548542,-500.0,0.00022429,2]
[343313548,1732572548562,-500.0,0.00022429,2]
[343313549,1732572548680,-500.0,0.00022429,2]
[343313550,1732572548708,-328.8621984,0.00022429,2]
[343313551,1732572548727,-500.0,0.00022429,2]
[343313552,1732572548746,-500.0,0.00022429,2]
[343313553,1732572548767,-500.0,0.00022429,2]
[343313554,1732572548786,-500.0,0.00022429,2]
[343313555,1732572548805,-13.70130376,0.00022429,2]
[343313556,1732572554106,-460.99000959,0.00022429,2]
[343313557,1732572555293,-25.30868665,0.00022429,2]
[343313558,1732572555317,-500.0,0.00022429,2]
[343313559,1732572555340,-500.0,0.00022429,2]
[343313560,1732572555363,-500.0,0.00022429,2]
[343313561,1732572555386,-500.0,0.00022429,2]
[343313562,1732572555409,-500.0,0.00022429,2]
[343313563,1732572555437,-500.0,0.00022429,2]
[343313564,1732572555461,-272.5,0.00022429,2]
[343313565,1732572555486,-500.0,0.00022429,2]
[343313566,1732572555511,-500.0,0.00022429,2]
[343313567,1732572555535,-1232.90752744,0.00022429,2]
[343313568,1732572555558,-190.62929718,0.00022429,2]
[343313569,1732572555583,-234.47056282,0.00022429,2]
[343313570,1732572555607,-500.0,0.00022429,2]
[343313571,1732572555630,-500.0,0.00022429,2]
[343313572,1732572555653,-546.28,0.00022429,2]
[343313573,1732572555682,-171.8595185,0.00022429,2]
[343313574,1732572555705,-500.0,0.00022429,2]
[343313575,1732572555729,-500.0,0.00022429,2]
[343313576,1732572555756,-2552.75980661,0.00022429,2]
[343313577,1732572559612,24971.8496397,0.00021798,2]
[343313578,1732572566030,-1064.80019339,0.00022429,2]
[343313579,1732572566054,-500.0,0.00022429,2]
[343313580,1732572566077,-500.0,0.00022429,2]
[343313581,1732572566102,-481.18,0.00022429,2]
[343313582,1732572566126,-500.0,0.00022429,2]
[343313583,1732572566149,-500.0,0.00022429,2]
[343313584,1732572566173,-500.0,0.00022429,2]
[343313585,1732572566204,-262.54864837,0.00022447,2]
[343313586,1732572567232,-1349.3914,0.00022447,2]
[343313587,1732572573098,-500.0,0.00022429,2]
[343313588,1732572573119,-480.0,0.00022429,2]
[343313595,1732572626217,17723.1727534,0.00021898,2]
[343313647,1732572632852,-20.0,0.00022429,2]
[343313649,1732572632861,-500.0,0.00022429,2]
[343313651,1732572632870,-261.20482586,0.00022429,2]
[343313653,1732572632879,-427.85999546,0.00022429,2]
[343313655,1732572632888,-500.0,0.00022429,2]
[343313657,1732572632897,-500.0,0.00022429,2]
[343313659,1732572632906,-375.09769663,0.00022429,2]
[343313661,1732572632918,-124.90230337,0.00022429,2]
[343313663,1732572632927,-330.68718173,0.00022429,2]
[343313665,1732572632936,-500.0,0.00022429,2]
[343313667,1732572632946,-300.0,0.00022546,2]
[343313669,1732572632955,-500.0,0.00022547,2]
[343313671,1732572632965,-500.0,0.00022547,2]
[343313673,1732572632976,-546.28,0.00022547,2]
[343313675,1732572632986,-684.71,0.00022702,2]
[343313677,1732572632996,-500.0,0.00022703,2]
[343313679,1732572633006,-500.0,0.00022703,2]
[343313681,1732572633016,-620.07,0.00022703,2]
[343313683,1732572633026,-290.77,0.00022703,2]
[343313685,1732572633035,-500.0,0.00022703,2]
[343313687,1732572633044,-242.26,0.00022703,2]
[343313689,1732572633054,-500.0,0.00022703,2]
[343313691,1732572633064,-210.92,0.00022703,2]
[343313693,1732572633076,-500.0,0.00022703,2]
[343313695,1732572633086,-500.0,0.00022703,2]
[343313697,1732572633096,-156.98,0.00022703,2]
[343313699,1732572633108,-500.0,0.00022703,2]
[343313701,1732572633118,-500.0,0.00022703,2]
[343313703,1732572633127,-500.0,0.00022703,2]
[343313705,1732572633138,-402.62080465,0.00022703,2]
[343313707,1732572633147,-500.0,0.00022703,2]
[343313709,1732572633158,-3617.56,0.00022703,2]
[343313712,1732572633167,-500.0,0.00022703,2]
[343313714,1732572633176,-500.0,0.00022703,2]
[343313716,1732572633186,-346.37,0.00022703,2]
[343313718,1732572633196,-500.0,0.00022703,2]
[343313719,1732572633205,-500.0,0.00022703,2]
[343313721,1732572633216,-500.0,0.00022703,2]
[343313724,1732572633229,-500.0,0.00022703,2]
[343313725,1732572633239,-500.0,0.00022703,2]
[343313728,1732572633250,-500.0,0.00022703,2]
[343313729,1732572633260,-500.0,0.00022703,2]
[343313731,1732572633270,-1018.560259,0.00022858,2]
[343313733,1732572633280,-500.0,0.00022976,2]
[343313735,1732572633290,-588.43,0.00022976,2]
[343313737,1732572633300,-218.84,0.00022976,2]
[343313739,1732572633310,-500.0,0.00022976,2]
[343313741,1732572633322,-500.0,0.00022976,2]
[343313743,1732572633332,-500.0,0.00022976,2]
[343313746,1732572633343,-500.0,0.00022976,2]
[343313747,1732572633360,-500.0,0.00022976,2]
[343313749,1732572633373,-500.0,0.00022976,2]
[343313751,1732572633384,-500.0,0.00022976,2]
[343313753,1732572633394,-3617.56,0.00022976,2]
[343313755,1732572633405,-607.8786817,0.00022976,2]
[343313757,1732572633415,-684.71,0.00022976,2]
[343313759,1732572633425,-500.0,0.00022976,2]
[343313761,1732572633435,-500.0,0.00022976,2]
[343313763,1732572633445,-500.0,0.00022976,2]
[343313766,1732572633455,-500.0,0.00022976,2]
[343313768,1732572633465,-500.0,0.00022976,2]
[343313770,1732572633476,-500.0,0.0002325,2]
[343313772,1732572633487,-500.0,0.0002325,2]
[343313773,1732572633497,-500.0,0.0002325,2]
[343313775,1732572633507,-193.81,0.0002325,2]
[343313777,1732572633517,-500.0,0.0002325,2]
[343313779,1732572633529,-500.0,0.0002325,2]
[343313781,1732572633539,-500.0,0.0002325,2]
[343313783,1732572633549,-245.44,0.0002325,2]
[343313786,1732572633564,-3617.56,0.0002325,2]
[343313788,1732572633574,-684.71,0.0002325,2]
[343313789,1732572633584,-500.0,0.0002325,2]
[343313791,1732572633596,-500.0,0.0002325,2]
[343313794,1732572633607,-275.25,0.0002325,2]
[343313796,1732572633617,-500.0,0.0002325,2]
[343313798,1732572633628,-294.8,0.0002325,2]
[343313800,1732572633639,-430.7209708,0.0002325,2]
[343313802,1732572633650,-427.7,0.00023492,3]
[343313804,1732572633660,-500.0,0.00023501,2]
[343313806,1732572633670,-500.0,0.00023501,2]
[343313808,1732572633680,-546.28,0.00023501,2]
[343313810,1732572633690,-607.7,0.00023501,2]
[343313812,1732572633700,-500.0,0.00023501,2]
[343313814,1732572633710,-500.0,0.00023502,2]
[343313816,1732572633720,-500.0,0.00023502,2]
[343313818,1732572633732,-599.831799,0.00023502,2]
[343313820,1732572633742,-500.0,0.00023502,2]
[343313822,1732572633753,-500.0,0.00023502,2]
[343313824,1732572633764,-500.0,0.00023502,2]
[343313826,1732572633775,-500.0,0.00023502,2]
[343313828,1732572633785,-500.0,0.00023502,2]
[343313830,1732572633796,-247.79385316,0.00023502,2]
[343313832,1732572633807,-206.06342597,0.00023502,2]
[343313834,1732572633817,-500.0,0.00023502,2]
[343313836,1732572633828,-500.0,0.00023502,2]
[343313838,1732572633838,-500.0,0.00023502,2]
[343313840,1732572633848,-500.0,0.00023502,2]
[343313841,1732572633858,-500.0,0.00023502,2]
[343313843,1732572633868,-500.0,0.00023502,2]
[343313845,1732572633878,-301.92344997,0.00023502,2]
[343313847,1732572633888,-500.0,0.00023502,2]
[343313848,1732572633898,-500.0,0.00023502,2]
[343313849,1732572633908,-500.0,0.00023502,2]
[343313850,1732572633919,-500.0,0.00023502,2]
[343313851,1732572633929,-500.0,0.00023502,2]
[343313852,1732572633939,-500.0,0.00023502,2]
[343313853,1732572633949,-511.47080474,0.00023502,2]
[343313854,1732572633959,-500.0,0.00023502,2]
[343313855,1732572633969,-500.0,0.00023502,2]
[343313856,1732572633983,-500.0,0.00023502,2]
[343313857,1732572633993,-500.0,0.00023502,2]
[343313858,1732572634003,-500.0,0.00023502,2]
[343313859,1732572634105,-500.0,0.00023502,2]
[343313860,1732572634116,-303.66261253,0.00023502,2]
[343313861,1732572634126,-500.0,0.00023502,2]
[343313862,1732572634136,-500.0,0.00023502,2]
[343313863,1732572634147,-500.0,0.00023502,2]
[343313864,1732572634156,-502.72902856,0.00023502,2]
[343313865,1732572634166,-500.0,0.00023502,2]
[343313866,1732572634176,-500.0,0.00023502,2]
[343313867,1732572634185,-500.0,0.00023502,2]
[343313868,1732572634195,-500.0,0.00023502,2]
[343313869,1732572634204,-500.0,0.00023502,2]
[343313870,1732572634214,-500.0,0.00023502,2]
[343313871,1732572634226,-250.05629046,0.00023502,2]
[343313872,1732572634236,-537.85841563,0.00023502,2]
[343313873,1732572634245,-500.0,0.00023502,2]
[343313874,1732572634255,-500.0,0.00023502,2]
[343313875,1732572634266,-500.0,0.00023502,2]
[343313876,1732572634275,-500.0,0.00023502,2]
[343313877,1732572634285,-500.0,0.00023502,2]
[343313878,1732572634294,-549.4,0.00023502,2]
[343313879,1732572634303,-500.0,0.00023502,2]
[343313880,1732572634313,-500.0,0.00023502,2]
[343313881,1732572634322,-500.0,0.00023502,2]
[343313882,1732572634332,-500.0,0.00023502,2]
[343313883,1732572634341,-500.0,0.00023502,2]
[343313884,1732572634351,-500.0,0.00023502,2]
[343313885,1732572634361,-500.0,0.00023502,2]
[343313886,1732572634372,-500.0,0.00023502,2]
[343313887,1732572634383,-500.0,0.00023502,2]
[343313888,1732572634393,-346.89258357,0.00023502,2]
[343313889,1732572634402,-500.0,0.00023502,2]
[343313890,1732572634413,-500.0,0.00023502,2]
[343313891,1732572634424,-500.0,0.00023502,2]
[343313892,1732572634434,-500.0,0.00023502,2]
[343313893,1732572634444,-500.0,0.00023502,2]
[343313894,1732572634454,-500.0,0.00023502,2]
[343313895,1732572634464,-500.0,0.00023502,2]
[343313896,1732572634475,-500.0,0.00023502,2]
[343313897,1732572634485,-500.0,0.00023502,2]
[343313898,1732572634494,-500.0,0.00023502,2]
[343313899,1732572634504,-500.0,0.00023502,2]
[343313900,1732572634514,-500.0,0.00023502,2]
[343313901,1732572634524,-500.0,0.00023502,2]
[343313902,1732572634535,-500.0,0.00023502,2]
[343313903,1732572634546,-500.0,0.00023502,2]
[343313904,1732572634560,-500.0,0.00023502,2]
[343313905,1732572634570,-500.0,0.00023502,2]
[343313906,1732572634580,-500.0,0.00023502,2]
[343313907,1732572634590,-500.0,0.00023502,2]
[343313908,1732572634602,-500.0,0.00023502,2]
[343313909,1732572634612,-500.0,0.00023502,2]
[343313910,1732572634622,-500.0,0.00023502,2]
[343313911,1732572634632,-500.0,0.00023502,2]
[343313912,1732572634641,-500.0,0.00023502,2]
[343313913,1732572634652,-500.0,0.00023502,2]
[343313914,1732572634662,-500.0,0.00023502,2]
[343313915,1732572634672,-398.91593833,0.00023502,2]
[343313916,1732572634681,-500.0,0.00023502,2]
[343313917,1732572634691,-391.66151724,0.00023502,2]
[343313918,1732572634700,-546.28,0.00023502,2]
[343313919,1732572634710,-500.0,0.00023502,2]
[343313920,1732572634720,-505.85820651,0.00023502,2]
[343313921,1732572634732,-500.0,0.00023502,2]
[343313922,1732572634742,-500.0,0.00023502,2]
[343313923,1732572634752,-500.0,0.00023502,2]
[343313924,1732572634763,-500.0,0.00023502,2]
[343313925,1732572634774,-500.0,0.00023502,2]
[343313926,1732572634784,-500.0,0.00023502,2]
[343313927,1732572634793,-500.0,0.00023502,2]
[343313928,1732572634803,-500.91319726,0.00023502,2]
[343313929,1732572634812,-500.0,0.00023502,2]
[343313930,1732572634823,-500.0,0.00023502,2]
[343313931,1732572634833,-500.0,0.00023502,2]
[343313932,1732572634843,-500.0,0.00023502,2]
[343313933,1732572634854,-500.0,0.00023502,2]
[343313934,1732572634863,-500.0,0.00023502,2]
[343313935,1732572634873,-500.0,0.00023502,2]
[343313936,1732572634882,-500.0,0.00023502,2]
[343313937,1732572634892,-500.0,0.00023503,2]
[343313938,1732572634901,-506.02691701,0.00023503,2]
[343313939,1732572634912,-152.39534633,0.00023503,2]
[343313940,1732572634921,-500.0,0.00023503,2]
[343313941,1732572634931,-500.0,0.00023503,2]
[343313942,1732572634941,-500.0,0.00023503,2]
[343313943,1732572634951,-500.0,0.00023503,2]